fUST/lending_fUST_20250719
["ID","MTS","AMOUNT","RATE_DAILY","PERIOD"]
[373170593,1752889838316,-460.0,0.00016438,2]
[373170594,1752889838327,-501.13016854,0.00016438,2]
[373170595,1752889838337,-551.98132706,0.00016438,2]
[373170596,1752889838348,-462.31025148,0.00016438,2]
[373170597,1752889838358,-466.29167882,0.00016438,2]
[373170598,1752889838369,-462.5637348,0.00016438,2]
[373170599,1752889838380,-460.0,0.00016438,2]
[373170600,1752889838390,-460.0,0.00016438,2]
[373170601,1752889838401,-460.44906706,0.00016438,2]
[373170602,1752889838411,-460.0,0.00016438,2]
[373170603,1752889838422,-464.33883179,0.00016438,2]
[373170604,1752889838434,-624.98,0.00016438,2]
[373170605,1752889838444,-465.87874561,0.00016438,2]
[373170606,1752889838457,-595.02796855,0.00016438,2]
[373170607,1752889838470,-460.0,0.00016438,2]
[373170608,1752889838481,-488.05317249,0.00016438,2]
[373170609,1752889838492,-464.82668776,0.00016438,2]
[373170610,1752889838503,-467.53092377,0.00016438,2]
[373170611,1752889838514,-461.58727333,0.00016438,2]
[373170612,1752889838525,-460.0,0.00016438,2]
[373170613,1752889838535,-460.0,0.00016438,2]
[373170614,1752889838546,-460.0,0.00016438,2]
[373170615,1752889838557,-460.0,0.00016438,2]
[373170616,1752889838567,-460.0,0.00016438,2]
[373170617,1752889838581,-463.55286991,0.00016438,2]
[373170618,1752889838592,-460.0,0.00016438,2]
[373170619,1752889838603,-577.50442941,0.00016438,2]
[373170620,1752889838615,-460.0,0.00016438,2]
[373170621,1752889838625,-460.0,0.00016438,2]
[373170622,1752889838636,-463.33485713,0.00016438,2]
[373170623,1752889838647,-463.24763413,0.00016438,2]
[373170624,1752889838658,-460.0,0.00016438,2]
[373170625,1752889838669,-463.98803276,0.00016438,2]
[373170626,1752889838680,-460.0,0.00016438,2]
[373170627,1752889838689,-595.44262359,0.00016438,2]
[373170628,1752889838699,-567.95369518,0.00016438,2]
[373170629,1752889838708,-465.031476,0.00016438,2]
[373170630,1752889838718,-500.0,0.00016438,2]
[373170631,1752889838727,-500.0,0.00016438,2]
[373170632,1752889838736,-500.0,0.00016438,2]
[373170633,1752889838953,-202.23099012,0.00016438,2]
[373170634,1752889838968,-463.10251389,0.00016438,2]
[373170635,1752889838978,-460.0,0.00016438,2]
[373170636,1752889838988,-462.02156407,0.00016438,2]
[373170637,1752889838998,-463.45618271,0.00016438,2]
[373170638,1752889839007,-462.29683046,0.00016438,2]
[373170639,1752889839017,-465.88690502,0.00016438,2]
[373170640,1752889839026,-460.0,0.00016438,2]
[373170641,1752889839036,-460.0,0.00016438,2]
[373170642,1752889839045,-460.0,0.00016438,2]
[373170643,1752889839055,-460.0,0.00016438,2]
[373170644,1752889839064,-460.0,0.00016438,2]
[373170645,1752889839073,-465.07189554,0.00016438,2]
[373170646,1752889839083,-464.14106668,0.00016438,2]
[373170647,1752889839093,-460.0,0.00016438,2]
[373170648,1752889839102,-460.0,0.00016438,2]
[373170649,1752889839111,-460.0,0.00016438,2]
[373170650,1752889839121,-460.0,0.00016438,2]
[373170651,1752889839130,-478.26540476,0.00016438,2]
[373170652,1752889839139,-462.00536086,0.00016438,2]
[373170653,1752889839150,-460.0,0.00016438,2]
[373170654,1752889839159,-464.45143572,0.00016438,2]
[373170655,1752889839168,-460.0,0.00016438,2]
[373170656,1752889839178,-460.0,0.00016438,2]
[373170657,1752889839187,-460.0,0.00016438,2]
[373170658,1752889839197,-460.0,0.00016438,2]
[373170659,1752889839206,-460.0,0.00016438,2]
[373170660,1752889839215,-462.54203478,0.00016438,2]
[373170661,1752889839225,-583.86824635,0.00016438,2]
[373170662,1752889839234,-464.749953,0.00016438,2]
[373170663,1752889839243,-462.65942288,0.00016438,2]
[373170664,1752889839252,-460.0,0.00016438,2]
[373170665,1752889839261,-463.63047753,0.00016438,2]
[373170666,1752889839271,-465.47244623,0.00016438,2]
[373170667,1752889839281,-460.0,0.00016438,2]
[373170668,1752889839290,-460.0,0.00016438,2]
[373170669,1752889839300,-460.0,0.00016438,2]
[373170670,1752889839310,-460.0,0.00016438,2]
[373170671,1752889839319,-460.0,0.00016438,2]
[373170672,1752889839329,-460.0,0.00016438,2]
[373170673,1752889839338,-467.77871443,0.00016438,2]
[373170674,1752889839348,-460.0,0.00016438,2]
[373170675,1752889839357,-461.02189288,0.00016438,2]
[373170676,1752889839368,-464.42960073,0.00016438,2]
[373170677,1752889839378,-474.42792733,0.00016438,2]
[373170678,1752889839388,-460.0,0.00016438,2]
[373170679,1752889839398,-463.45058768,0.00016438,2]
[373170680,1752889839408,-498.88,0.00016438,2]
[373170681,1752889839418,-460.0,0.00016438,2]
[373170682,1752889839428,-463.25609649,0.00016438,2]
[373170683,1752889839438,-460.0,0.00016438,2]
[373170684,1752889839447,-390.00711224,0.00016438,2]
[373170685,1752889839457,-460.0,0.00016438,2]
[373170686,1752889839467,-460.0,0.00016438,2]
[373170687,1752889839476,-554.71117474,0.00016438,2]
[373170688,1752889839486,-478.7717297,0.00016438,2]
[373170689,1752889839496,-460.0,0.00016438,2]
[373170690,1752889839505,-460.0,0.00016438,2]
[373170691,1752889839515,-460.0,0.00016438,2]
[373170692,1752889839524,-460.0,0.00016438,2]
[373170693,1752889839533,-460.0,0.00016438,2]
[373170694,1752889839543,-460.0,0.00016438,2]
[373170695,1752889839552,-469.56894678,0.00016438,2]
[373170696,1752889839562,-460.0,0.00016438,2]
[373170697,1752889839573,-460.0,0.00016438,2]
[373170698,1752889839583,-460.0,0.00016438,2]
[373170699,1752889839593,-466.67914008,0.00016438,2]
[373170700,1752889839602,-464.42918936,0.00016438,2]
[373170701,1752889839611,-460.0,0.00016438,2]
[373170702,1752889839621,-460.0,0.00016438,2]
[373170703,1752889839631,-460.0,0.00016438,2]
[373170704,1752889839640,-460.0,0.00016438,2]
[373170705,1752889839653,-460.0,0.00016438,2]
[373170706,1752889839663,-460.0,0.00016438,2]
[373170707,1752889839673,-466.70839681,0.00016438,2]
[373170708,1752889839684,-460.0,0.00016438,2]
[373170711,1752889839693,-460.0,0.00016438,2]
[373170712,1752889839703,-460.0,0.00016438,2]
[373170713,1752889839713,-460.0,0.00016438,2]
[373170714,1752889839722,-460.0,0.00016438,2]
[373170715,1752889839731,-462.58436946,0.00016438,2]
[373170716,1752889839741,-340.94221538,0.00016438,2]
[373170717,1752889839750,-466.79604839,0.00016438,2]
[373170718,1752889839759,-460.0,0.00016438,2]
[373170719,1752889839768,-460.0,0.00016438,2]
[373170720,1752889839777,-462.01935652,0.00016438,2]
[373170721,1752889839787,-460.0,0.00016438,2]
[373170723,1752889839796,-461.44732478,0.00016438,2]
[373170725,1752889839805,-460.0,0.00016438,2]
[373170727,1752889839814,-460.0,0.00016438,2]
[373170729,1752889839823,-460.0,0.00016438,2]
[373170731,1752889839833,-460.0,0.00016438,2]
[373170733,1752889839842,-460.0,0.00016438,2]
[373170735,1752889839851,-643.65,0.00016438,2]
[373170737,1752889839861,-464.15929311,0.00016438,2]
[373170739,1752889839871,-460.0,0.00016438,2]
[373170741,1752889839880,-460.0,0.00016438,2]
[373170743,1752889839889,-461.59748486,0.00016438,2]
[373170745,1752889839899,-462.39902599,0.00016438,2]
[373170747,1752889839912,-460.0,0.00016438,2]
[373170749,1752889839921,-463.74366608,0.00016438,2]
[373170751,1752889839931,-460.96403689,0.00016438,2]
[373170753,1752889839940,-462.18493317,0.00016438,2]
[373170755,1752889839949,-460.0,0.00016438,2]
[373170757,1752889839958,-460.0,0.00016438,2]
[373170759,1752889839968,-462.12956287,0.00016438,2]
[373170761,1752889839977,-460.0,0.00016438,2]
[373170763,1752889839987,-460.0,0.00016438,2]
[373170765,1752889839996,-460.0,0.00016438,2]
[373170767,1752889840006,-466.67359599,0.00016438,2]
[373170769,1752889840016,-462.54211144,0.00016438,2]
[373170771,1752889840025,-460.0,0.00016438,2]
[373170773,1752889840035,-460.0,0.00016438,2]
[373170775,1752889840046,-460.0,0.00016438,2]
[373170777,1752889840056,-460.0,0.00016438,2]
[373170779,1752889840066,-460.0,0.00016438,2]
[373170781,1752889840076,-466.45847209,0.00016438,2]
[373170783,1752889840086,-460.0,0.00016438,2]
[373170785,1752889840096,-460.0,0.00016438,2]
[373170787,1752889840106,-460.0,0.00016438,2]
[373170789,1752889840115,-460.0,0.00016438,2]
[373170791,1752889840126,-460.0,0.00016438,2]
[373170793,1752889840136,-1048.66,0.00016438,2]
[373170794,1752889840145,-462.89450669,0.00016438,2]
[373170795,1752889840159,-462.36639111,0.00016438,2]
[373170796,1752889840169,-471.78267977,0.00016438,2]
[373170797,1752889840178,-2112.61,0.00016438,2]
[373170798,1752889840188,-460.0,0.00016438,2]
[373170799,1752889840197,-460.0,0.00016438,2]
[373170800,1752889840207,-562.06501111,0.00016438,2]
[373170801,1752889840216,-463.52538848,0.00016438,2]
[373170802,1752889840226,-460.0,0.00016438,2]
[373170803,1752889840236,-460.0,0.00016438,2]
[373170804,1752889840245,-463.18830394,0.00016438,2]
[373170805,1752889840255,-460.0,0.00016438,2]
[373170806,1752889840264,-460.0,0.00016438,2]
[373170807,1752889840275,-460.0,0.00016438,2]
[373170808,1752889840284,-377.09082134,0.00016438,2]
[373170809,1752889840294,-460.0,0.00016438,2]
[373170810,1752889840304,-462.22108812,0.00016438,2]
[373170811,1752889840313,-272.28044384,0.00016438,2]
[373170812,1752889840323,-1102.5,0.00016438,2]
[373170813,1752889840333,-460.0,0.00016438,2]
[373170814,1752889840342,-460.0,0.00016438,2]
[373170815,1752889840352,-460.0,0.00016438,2]
[373170816,1752889840361,-460.0,0.00016438,2]
[373170817,1752889840370,-465.82513852,0.00016438,2]
[373170818,1752889840380,-460.0,0.00016438,2]
[373170819,1752889840390,-464.66701985,0.00016438,2]
[373170820,1752889840399,-461.56680538,0.00016438,2]
[373170821,1752889840412,-460.0,0.00016438,2]
[373170822,1752889840423,-460.0,0.00016438,2]
[373170823,1752889840432,-514.42,0.00016438,2]
[373170824,1752889840441,-289.58776564,0.00016438,2]
[373170825,1752889840450,-460.0,0.00016438,2]
[373170826,1752889840460,-465.42872943,0.00016438,2]
[373170827,1752889840469,-652.43,0.00016438,2]
[373170828,1752889840478,-464.89195319,0.00016438,2]
[373170830,1752889840487,-460.0,0.00016438,2]
[373170832,1752889840497,-465.96138578,0.00016438,2]
[373170834,1752889840506,-1428.9,0.00016438,2]
[373170836,1752889840515,-460.0,0.00016438,2]
[373170838,1752889840525,-1641.4,0.00016438,2]
[373170839,1752889840534,-460.0,0.00016438,2]
[373170840,1752889840544,-461.75018243,0.00016438,2]
[373170841,1752889840553,-460.0,0.00016438,2]
[373170842,1752889840563,-461.20997658,0.00016438,2]
[373170844,1752889840576,-501.1667014,0.00016438,2]
[373170846,1752889840586,-460.0,0.00016438,2]
[373170848,1752889840595,-460.0,0.00016438,2]
[373170850,1752889840604,-465.16946112,0.00016438,2]
[373170852,1752889840614,-1213.09,0.00016438,2]
[373170854,1752889840623,-460.0,0.00016438,2]
[373170856,1752889840633,-460.0,0.00016438,2]
[373170858,1752889840642,-555.73,0.00016438,2]
[373170860,1752889840656,-384.33233655,0.00016438,2]
[373170862,1752889840665,-461.34635402,0.00016438,2]
[373170864,1752889840675,-565.06795884,0.00016438,2]
[373170866,1752889840685,-460.0,0.00016438,2]
[373170868,1752889840695,-463.47171013,0.00016438,2]
[373170870,1752889840704,-464.26110853,0.00016438,2]
[373170872,1752889840714,-460.0,0.00016438,2]
[373170875,1752889840725,-460.0,0.00016438,2]
[373170877,1752889840734,-460.0,0.00016438,2]
[373170879,1752889840743,-465.02567183,0.00016438,2]
[373170881,1752889840753,-460.0,0.00016438,2]
[373170883,1752889840762,-460.0,0.00016438,2]
[373170885,1752889840772,-460.0,0.00016438,2]
[373170886,1752889840780,-2991.77,0.00016438,2]
[373170889,1752889840791,-465.28808488,0.00016438,2]
[373170890,1752889840802,-460.0,0.00016438,2]
[373170893,1752889840812,-466.10709465,0.00016438,2]
[373170894,1752889840821,-1987.27,0.00016438,2]
[373170896,1752889840830,-461.68040546,0.00016438,2]
[373170899,1752889840840,-463.52804401,0.00016438,2]
[373170901,1752889840849,-460.0,0.00016438,2]
[373170902,1752889840859,-462.54562264,0.00016438,2]
[373170904,1752889840868,-460.0,0.00016438,2]
[373170906,1752889840878,-460.0,0.00016438,2]
[373170908,1752889840888,-938.91,0.00016438,2]
[373170910,1752889840897,-460.0,0.00016438,2]
[373170912,1752889840908,-460.0,0.00016438,2]
[373170914,1752889840918,-463.23946763,0.00016438,2]
[373170916,1752889840927,-460.0,0.00016438,2]
[373170918,1752889840938,-460.0,0.00016438,2]
[373170920,1752889840947,-460.0,0.00016438,2]
[373170922,1752889840956,-1454.48,0.00016438,2]
[373170924,1752889840966,-488.63,0.00016438,2]
[373170926,1752889840975,-172.34567752,0.00016438,2]
[373170928,1752889840985,-180.39547206,0.00016438,2]
[373170930,1752889840994,-460.0,0.00016438,2]
[373170932,1752889841004,-460.0,0.00016438,2]
[373170934,1752889841016,-462.11974074,0.00016438,2]
[373170936,1752889841025,-737.82,0.00016438,2]
[373170938,1752889841034,-460.32,0.00016438,2]
[373170940,1752889841044,-460.0,0.00016438,2]
[373170942,1752889841054,-192.29199199,0.00016438,2]
[373170944,1752889841064,-460.0,0.00016438,2]
[373170946,1752889841073,-463.89663959,0.00016438,2]
[373170948,1752889841083,-460.0,0.00016438,2]
[373170950,1752889841096,-460.0,0.00016438,2]
[373170952,1752889841106,-462.45460234,0.00016438,2]
[373170954,1752889841115,-967.13,0.00016438,2]
[373170956,1752889841124,-460.0,0.00016438,2]
[373170958,1752889841133,-492.93586853,0.00016438,2]
[373170960,1752889841143,-465.48420076,0.00016438,2]
[373170962,1752889841153,-460.0,0.00016438,2]
[373170964,1752889841163,-369.66067883,0.00016438,2]
[373170966,1752889841171,-3100.36,0.00016438,2]
[373170968,1752889841181,-464.99007894,0.00016438,2]
[373170970,1752889841190,-460.0,0.00016438,2]
[373170972,1752889841199,-460.0,0.00016438,2]
[373170974,1752889841209,-464.86016792,0.00016438,2]
[373170976,1752889841218,-1316.83,0.00016438,2]
[373170978,1752889841228,-460.0,0.00016438,2]
[373170980,1752889841237,-460.0,0.00016438,2]
[373170982,1752889841247,-460.0,0.00016438,2]
[373170984,1752889841256,-460.0,0.00016438,2]
[373170986,1752889841266,-461.8604209,0.00016438,2]
[373170988,1752889841275,-465.48624482,0.00016438,2]
[373170989,1752889841284,-468.27301586,0.00016438,2]
[373170991,1752889841294,-465.18291007,0.00016438,2]
[373170993,1752889841304,-460.0,0.00016438,2]
[373170995,1752889841313,-460.0,0.00016438,2]
[373170998,1752889841323,-460.0,0.00016438,2]
[373170999,1752889841332,-460.0,0.00016438,2]
[373171001,1752889841342,-460.0,0.00016438,2]
[373171004,1752889841351,-460.0,0.00016438,2]
[373171006,1752889841361,-464.40508256,0.00016438,2]
[373171008,1752889841370,-463.19692395,0.00016438,2]
[373171009,1752889841379,-460.91910352,0.00016438,2]
[373171011,1752889841389,-460.0,0.00016438,2]
[373171013,1752889841399,-462.72318135,0.00016438,2]
[373171015,1752889841410,-460.0,0.00016438,2]
[373171017,1752889841419,-465.5249847,0.00016438,2]
[373171019,1752889841429,-460.0,0.00016438,2]
[373171021,1752889841439,-463.18762416,0.00016438,2]
[373171023,1752889841448,-460.0,0.00016438,2]
[373171025,1752889841458,-462.56628185,0.00016438,2]
[373171028,1752889841468,-468.44695989,0.00016438,2]
[373171030,1752889841477,-460.0,0.00016438,2]
[373171032,1752889841487,-460.0,0.00016438,2]
[373171034,1752889841496,-465.92823901,0.00016438,2]
[373171035,1752889841505,-460.0,0.00016438,2]
[373171038,1752889841515,-461.6314681,0.00016438,2]
[373171040,1752889841524,-184.13831622,0.00016438,2]
[373171041,1752889841534,-460.0,0.00016438,2]
[373171043,1752889841543,-470.14349904,0.00016438,2]
[373171046,1752889841553,-460.0,0.00016438,2]
[373171047,1752889841563,-530.84,0.00016438,2]
[373171049,1752889841573,-2237.96309091,0.00016438,2]
[373171052,1752889841584,-500.45974559,0.00016473,2]
[373171054,1752889841594,-181.24,0.00016702,3]
[373171056,1752889841604,-543.72,0.00016702,3]
[373171058,1752889841613,-462.56205037,0.00016712,2]
[373171059,1752889841624,-460.0,0.00016712,2]
[373171062,1752889841633,-460.0,0.00016712,2]
[373171063,1752889841643,-470.3806781,0.00016712,2]
[373171065,1752889841655,-460.0,0.00016712,2]
[373171067,1752889841665,-460.0,0.00016712,2]
[373171070,1752889841675,-465.52560409,0.00016712,2]
[373171072,1752889841686,-460.0,0.00016712,2]
[373171074,1752889841695,-174.18791115,0.00016712,2]
[373171076,1752889841706,-463.45699164,0.00016712,2]
[373171078,1752889841717,-255.68689173,0.00016712,2]
[373171080,1752889841727,-465.5643593,0.00016712,2]
[373171082,1752889841736,-463.4851705,0.00016712,2]
[373171084,1752889841746,-529.96163117,0.00016712,2]
[373171086,1752889841756,-463.45108865,0.00016712,2]
[373171088,1752889841765,-460.0,0.00016712,2]
[373171090,1752889841775,-624.98,0.00016712,2]
[373171092,1752889841784,-464.2036178,0.00016712,2]
[373171094,1752889841794,-460.0,0.00016712,2]
[373171096,1752889841805,-460.0,0.00016712,2]
[373171098,1752889841814,-460.0,0.00016712,2]
[373171100,1752889841824,-464.3223349,0.00016712,2]
[373171102,1752889841834,-391.64984049,0.00016712,2]
[373171104,1752889841847,-469.19571151,0.00016712,2]
[373171106,1752889841857,-472.3745634,0.00016712,2]
[373171108,1752889841866,-469.11777371,0.00016712,2]
[373171110,1752889841876,-499.63693295,0.00016712,2]
[373171112,1752889841886,-463.43577304,0.00016712,2]
[373171114,1752889841896,-460.0,0.00016712,2]
[373171116,1752889841905,-460.0,0.00016712,2]
[373171118,1752889841915,-460.0,0.00016712,2]
[373171120,1752889841924,-471.11428016,0.00016712,2]
[373171121,1752889841934,-464.0650274,0.00016712,2]
[373171122,1752889841944,-460.0,0.00016712,2]
[373171123,1752889841955,-460.0,0.00016712,2]
[373171124,1752889841965,-464.59973273,0.00016712,2]
[373171125,1752889841975,-465.98655467,0.00016712,2]
[373171126,1752889841985,-460.0,0.00016712,2]
[373171127,1752889841994,-460.0,0.00016712,2]
[373171128,1752889842004,-460.0,0.00016712,2]
[373171129,1752889842014,-460.0,0.00016712,2]
[373171130,1752889842025,-463.89583808,0.00016712,2]
[373171131,1752889842034,-433.80641339,0.00016712,2]
[373171132,1752889842044,-464.77000809,0.00016712,2]
[373171133,1752889842053,-462.97202314,0.00016712,2]
[373171134,1752889842063,-466.19711598,0.00016712,2]
[373171135,1752889842072,-460.0,0.00016712,2]
[373171136,1752889842082,-498.88,0.00016712,2]
[373171137,1752889842215,-463.69884642,0.00016712,2]
[373171138,1752889842229,-460.0,0.00016712,2]
[373171139,1752889842239,-460.0,0.00016712,2]
[373171140,1752889842249,-460.0,0.00016712,2]
[373171141,1752889842259,-460.0,0.00016712,2]
[373171142,1752889842269,-460.0,0.00016712,2]
[373171143,1752889842279,-460.0,0.00016712,2]
[373171144,1752889842288,-460.0,0.00016712,2]
[373171146,1752889842300,-460.0,0.00016712,2]
[373171149,1752889842312,-460.0,0.00016712,2]
[373171151,1752889842322,-460.0,0.00016712,2]
[373171153,1752889842332,-460.0,0.00016712,2]
[373171155,1752889842342,-460.0,0.00016712,2]
[373171157,1752889842351,-460.0,0.00016712,2]
[373171159,1752889842361,-460.0,0.00016712,2]
[373171161,1752889842370,-460.0,0.00016712,2]
[373171163,1752889842380,-460.0,0.00016712,2]
[373171165,1752889842389,-460.0,0.00016712,2]
[373171167,1752889842399,-460.0,0.00016712,2]
[373171169,1752889842409,-466.56439517,0.00016712,2]
[373171171,1752889842418,-460.0,0.00016712,2]
[373171173,1752889842428,-460.0,0.00016712,2]
[373171175,1752889842438,-460.0,0.00016712,2]
[373171177,1752889842447,-460.0,0.00016712,2]
[373171179,1752889842457,-460.0,0.00016712,2]
[373171181,1752889842466,-460.0,0.00016712,2]
[373171183,1752889842476,-460.0,0.00016712,2]
[373171185,1752889842485,-464.66216789,0.00016712,2]
[373171186,1752889842494,-460.0,0.00016712,2]
[373171188,1752889842504,-460.0,0.00016712,2]
[373171190,1752889842514,-460.0,0.00016712,2]
[373171192,1752889842524,-643.65,0.00016712,2]
[373171195,1752889842537,-465.26823971,0.00016712,2]
[373171198,1752889842546,-460.0,0.00016712,2]
[373171200,1752889842556,-460.0,0.00016712,2]
[373171201,1752889842565,-460.0,0.00016712,2]
[373171205,1752889842577,-460.0,0.00016712,2]
[373171208,1752889842587,-460.0,0.00016712,2]
[373171211,1752889842596,-460.0,0.00016712,2]
[373171214,1752889842605,-460.0,0.00016712,2]
[373171217,1752889842614,-460.0,0.00016712,2]
[373171220,1752889842623,-460.0,0.00016712,2]
[373171222,1752889842633,-460.0,0.00016712,2]
[373171224,1752889842642,-460.0,0.00016712,2]
[373171227,1752889842652,-460.0,0.00016712,2]
[373171229,1752889842663,-460.0,0.00016712,2]
[373171232,1752889842673,-460.0,0.00016712,2]
[373171236,1752889842683,-460.0,0.00016712,2]
[373171239,1752889842692,-460.0,0.00016712,2]
[373171242,1752889842702,-460.0,0.00016712,2]
[373171245,1752889842711,-1048.66,0.00016712,2]
[373171249,1752889842721,-2112.61,0.00016712,2]
[373171253,1752889842730,-460.0,0.00016712,2]
[373171256,1752889842740,-460.0,0.00016712,2]
[373171259,1752889842750,-460.0,0.00016712,2]
[373171261,1752889842760,-490.7042202,0.00016712,2]
[373171263,1752889842770,-460.0,0.00016712,2]
[373171265,1752889842779,-460.0,0.00016712,2]
[373171267,1752889842788,-460.0,0.00016712,2]
[373171269,1752889842798,-460.0,0.00016712,2]
[373171271,1752889842808,-1102.5,0.00016712,2]
[373171272,1752889842818,-460.0,0.00016712,2]
[373171274,1752889842827,-460.0,0.00016712,2]
[373171276,1752889842837,-460.0,0.00016712,2]
[373171278,1752889842847,-307.24882115,0.00016712,2]
[373171280,1752889842856,-460.0,0.00016712,2]
[373171282,1752889842866,-460.0,0.00016712,2]
[373171284,1752889842875,-460.0,0.00016712,2]
[373171286,1752889842885,-514.42,0.00016712,2]
[373171288,1752889842895,-473.15896719,0.00016712,2]
[373171290,1752889842904,-652.43,0.00016712,2]
[373171292,1752889842914,-465.41258363,0.00016712,2]
[373171294,1752889842924,-1428.9,0.00016712,2]
[373171296,1752889842934,-1641.4,0.00016712,2]
[373171298,1752889842944,-460.0,0.00016712,2]
[373171300,1752889842953,-460.0,0.00016712,2]
[373171302,1752889842963,-460.0,0.00016712,2]
[373171304,1752889842972,-460.0,0.00016712,2]
[373171306,1752889842982,-1213.09,0.00016712,2]
[373171308,1752889842991,-460.0,0.00016712,2]
[373171310,1752889843001,-460.0,0.00016712,2]
[373171312,1752889843010,-555.73,0.00016712,2]
[373171314,1752889843020,-205.45351343,0.00016712,2]
[373171316,1752889843029,-460.0,0.00016712,2]
[373171318,1752889843038,-460.0,0.00016712,2]
[373171320,1752889843048,-460.0,0.00016712,2]
[373171321,1752889843058,-460.0,0.00016712,2]
[373171322,1752889843067,-460.0,0.00016712,2]
[373171323,1752889843077,-460.0,0.00016712,2]
[373171324,1752889843088,-2991.77,0.00016712,2]
[373171325,1752889843097,-460.0,0.00016712,2]
[373171326,1752889843107,-1987.27,0.00016712,2]
[373171327,1752889843116,-460.0,0.00016712,2]
[373171328,1752889843126,-460.0,0.00016712,2]
[373171329,1752889843135,-460.0,0.00016712,2]
[373171330,1752889843145,-938.91,0.00016712,2]
[373171331,1752889843155,-460.0,0.00016712,2]
[373171332,1752889843165,-498.33821281,0.00016712,2]
[373171333,1752889843175,-460.0,0.00016712,2]
[373171334,1752889843184,-460.0,0.00016712,2]
[373171335,1752889843194,-460.0,0.00016712,2]
[373171336,1752889843203,-1454.48,0.00016712,2]
[373171337,1752889843213,-488.63,0.00016712,2]
[373171338,1752889843223,-460.0,0.00016712,2]
[373171339,1752889843232,-460.0,0.00016712,2]
[373171340,1752889843242,-737.82,0.00016712,2]
[373171341,1752889843251,-460.32,0.00016712,2]
[373171342,1752889843260,-464.63859633,0.00016712,2]
[373171343,1752889843270,-460.0,0.00016712,2]
[373171345,1752889843280,-465.81990001,0.00016712,2]
[373171347,1752889843289,-460.0,0.00016712,2]
[373171349,1752889843299,-967.13,0.00016712,2]
[373171351,1752889843309,-460.0,0.00016712,2]
[373171353,1752889843318,-460.0,0.00016712,2]
[373171355,1752889843328,-3100.36,0.00016712,2]
[373171357,1752889843341,-460.0,0.00016712,2]
[373171359,1752889843350,-460.0,0.00016712,2]
[373171361,1752889843359,-460.0,0.00016712,2]
[373171363,1752889843369,-460.0,0.00016712,2]
[373171365,1752889843379,-1316.83,0.00016712,2]
[373171367,1752889843388,-460.0,0.00016712,2]
[373171369,1752889843398,-460.0,0.00016712,2]
[373171371,1752889843408,-469.08121383,0.00016712,2]
[373171373,1752889843418,-460.0,0.00016712,2]
[373171375,1752889843427,-460.0,0.00016712,2]
[373171377,1752889843436,-460.0,0.00016712,2]
[373171379,1752889843445,-460.0,0.00016712,2]
[373171381,1752889843455,-460.0,0.00016712,2]
[373171383,1752889843465,-460.0,0.00016712,2]
[373171385,1752889843475,-460.0,0.00016712,2]
[373171386,1752889843485,-460.0,0.00016712,2]
[373171388,1752889843494,-464.4451644,0.00016712,2]
[373171391,1752889843503,-460.0,0.00016712,2]
[373171392,1752889843514,-464.17124003,0.00016712,2]
[373171395,1752889843524,-308.71832558,0.00016712,2]
[373171397,1752889843534,-530.84,0.00016712,2]
[373171399,1752889843543,-2000.0,0.000168,2]
[373171401,1752889843553,-2000.0,0.000168,3]